Cogmind - Beta 15 *** ADVENTURER MODE // 2025.07.09 @ 06:19:17 Player: Violet Result: Self-destructed Performance ------------- Evolutions (2) 1000 Regions Visited (4) 800 Robots Destroyed (53) 265 Value Destroyed (1523) 1523 Prototype IDs (2) 40 Alien Tech Used (0) 0 Bonus (0) 0 TOTAL SCORE: 3628 Bonus ------- None Cogmind --------- Core Integrity 387/550 Matter 285/300 Energy 20/100 System Corruption 0% Temperature Cool (71) Movement Walking (120) Location -8/Materials Parts ------- > --- POWER (1) -------- (None) > --- PROPULSION (4) --- Aluminum Leg Aluminum Leg Aluminum Leg Carbon-fiber Leg > --- UTILITY (4) ------ Improved Heat Sink Medium Storage Unit Armor Integrity Analyzer > --- WEAPON (2) ------- Advanced Beam Rifle Plasma Cannon > --- INVENTORY (10) --- Improved Heat Sink Small Storage Unit Transport Network Coupler Armor Integrity Analyzer Improved Medium Laser Improved Medium Laser Plasma Cannon Rocket Launcher Peak State ------------ > --- POWER ------------ Light Nuclear Core > --- PROPULSION ------- Aluminum Leg Aluminum Leg Aluminum Leg Carbon-fiber Leg > --- UTILITY ---------- Improved Heat Sink Medium Storage Unit Armor Integrity Analyzer > --- WEAPON ----------- Advanced Beam Rifle Plasma Cannon > --- INVENTORY -------- Improved Heat Sink Small Storage Unit Transport Network Coupler Armor Integrity Analyzer Improved Medium Laser Improved Medium Laser Plasma Cannon Rocket Launcher [Rating: 27] Favorites ----------- Power Ion Engine Engine Ion Engine Power Core Light Nuclear Core Propulsion Aluminum Leg Leg Aluminum Leg Utility Improved Heat Sink Device Improved Heat Sink Storage Medium Storage Unit Processor Armor Integrity Analyzer Weapon Particle Gun Energy Gun Particle Gun Energy Cannon Ion Cannon Ballistic Gun Assault Rifle Build | -11 -10 -10 -9 -8 ------- Run | Yrd Mat Min Mat Mat Slots Evolved 4 | . . . 2 2 Power . | . . . . . Propulsion 2 | . . . 1 1 Utility 2 | . . . 1 1 Weapon . | . . . . . Parts Attached 30 | 6 8 . 6 10 Power 5 | 1 1 . 1 2 Engine 3 | 1 1 . 1 . Core 2 | . . . . 2 Reactor . | . . . . . Propulsion 10 | 2 2 . 2 4 Treads . | . . . . . Leg 10 | 2 2 . 2 4 Wheel . | . . . . . Hover . | . . . . . Flight . | . . . . . Utility 6 | 1 3 . 1 1 Device 3 | . 2 . 1 . Storage 2 | 1 1 . . . Processor 1 | . . . . 1 Hackware . | . . . . . Protection . | . . . . . Artifact . | . . . . . Weapon 9 | 2 2 . 2 3 Energy Gun 6 | 2 1 . 1 2 Energy Cannon 2 | . . . 1 1 Ballistic Gun 1 | . 1 . . . Ballistic Cannon . | . . . . . Launcher . | . . . . . Special Weapon . | . . . . . Impact Weapon . | . . . . . Slashing Weapon . | . . . . . Piercing Weapon . | . . . . . Special Melee Weapon . | . . . . . Unidentified Prototypes 2 | . . . 1 1 Parts Lost 11 | . 2 . 3 6 Power 4 | . 1 . 1 2 Propulsion 3 | . . . 1 2 Utility 1 | . . . . 1 Weapon 3 | . 1 . 1 1 Highest Loss Streak 5 | . 1 . 2 5 To Critical Strikes . | . . . . . Average Backups 7 | 1 6 8 8 8 Power . | . . 1 . . Propulsion . | . 1 1 . . Utility 2 | . 1 3 3 3 Weapon 3 | . 2 3 4 4 Tool/Special . | . . . . . Unused Backups 14 | 1 2 1 . 10 Power 1 | 1 . . . . Propulsion 2 | . 1 . . 1 Utility 3 | . . . . 3 Weapon 8 | . 1 1 . 6 Tool/Special . | . . . . . Average Slot Usage (%) 89 | . 95 100 87 63 Engine 11 | . 13 14 10 3 Leg 26 | . 28 28 29 13 Device 13 | . 10 14 14 14 Storage 12 | . 14 14 11 9 Energy Gun 15 | . 21 14 11 14 Energy Cannon 3 | . . . 8 3 Ballistic Gun 6 | . 5 14 2 . Peak Build Rating 27 | 6 11 11 16 27 Average Rating 12 | 4 9 11 13 17 On Entrance 8 | . 6 11 11 15 Naked Turns . | . . . . . Heaviest Build 26 | 13 21 21 26 26 Greatest Support 45 | 20 20 20 30 45 Greatest Overweight (x) 8 | . 1 1 1 8 Average Overweight (x) . | . . 1 . 1 Largest Inventory Capacity 10 | 8 10 10 10 10 Average Capacity 9 | 7 8 10 10 10 Most Carried 10 | 5 10 9 10 10 Average Carried 7 | 1 6 8 8 8 Final Capacity 10 | 8 10 10 10 10 Final Carried 8 | 1 8 8 8 8 Class Distribution -------------------- 68% | Scavenger-Mutant 31% | Mutant Dominant Class ---------------- Mutant | -10/Materials Scavenger-Mutant | -10/Mines Scavenger-Mutant | -9/Materials Scavenger-Mutant | -8/Materials Resources | -11 -10 -10 -9 -8 ----------- Run | Yrd Mat Min Mat Mat Matter Collected 575 | 225 156 24 90 80 Remotely . | . . . . . Salvage Created 2053 | . 429 73 811 740 Parts 121 | . 27 5 49 40 Haulers Intercepted 3 | . 2 . 1 . Recyclers Shooed . | . . . . . Parts Field Recycled . | . . . . . Retrieved Matter . | . . . . . Parts Self-Destructed . | . . . . . Prevented . | . . . . . Kills | -11 -10 -10 -9 -8 ------- Run | Yrd Mat Min Mat Mat Combat Hostiles Destroyed 42 | . 9 5 18 10 Guns 26 | . 9 5 5 7 Cannons 14 | . . . 13 1 AOE 1 | . . . . 1 Classes Destroyed 11 | . 3 . 2 6 Worker 3 | . . . . 3 Builder 1 | . . . . 1 Tunneler 1 | . . . . 1 Hauler 3 | . 2 . 1 . Recycler 1 | . . . . 1 Watcher 2 | . . . . 2 Swarmer 11 | . 3 5 3 . Grunt 22 | . 6 . 7 9 Brawler 1 | . . . 1 . Sentry 7 | . . . 7 . Hunter 1 | . . . . 1 Best Kill Streak 5 | . 3 3 4 5 Combat Bots Only 5 | . 3 3 4 5 Max Kills in Single Turn 4 | . 2 2 1 4 Gunslinging 1 | . 1 1 . . Exploded 1 | . . . . 1 Melee . | . . . . . Uniques/NPCs Destroyed . | . . . . . Combat | -11 -10 -10 -9 -8 -------- Run | Yrd Mat Min Mat Mat Hostile Shots Fired 219 | . 45 13 79 82 Missed 70 | . 15 7 23 25 Hits 149 | . 30 6 56 57 Projectile 149 | . 30 6 56 57 Critical Strikes 10 | . 1 . 7 2 Damage Taken 1620 | . 306 36 536 742 Core 277 | . 30 9 75 163 Absorbed by Shields . | . . . . . Ignored by Resistances 479 | . 93 12 161 213 Core Remaining (%) 88 | 100 . 84 81 . Volleys Fired 105 | . 21 8 40 36 Largest 2 | . 2 2 2 2 Hottest 141 | . 105 85 125 141 Shots Fired 197 | . 39 16 76 66 Gun 156 | . 39 16 50 51 Cannon 41 | . . . 26 15 Launcher . | . . . . . Special . | . . . . . Kinetic 30 | . 12 8 10 . Thermal 146 | . 21 8 66 51 Explosive . | . . . . . Electromagnetic 21 | . 6 . . 15 Robot Hit Streak 36 | . 17 25 36 19 Robot Miss Streak 4 | . 1 2 2 4 Penetration Max . | . . . . . Secondary Targets 9 | . 4 2 1 2 Max Gunslinging Chain 1 | . 1 1 1 1 Shots Hit Robots 162 | . 34 12 66 50 Core Hits 82 | . 22 5 27 28 Critical Kills . | . . . . . Critical Parts Destroyed . | . . . . . Critical Strikes 8 | . 1 . . 7 Burn 8 | . 1 . . 7 Melee Attacks . | . . . . . Impact . | . . . . . Slashing . | . . . . . Piercing . | . . . . . Sneak Attacks . | . . . . . Combat Hostiles . | . . . . . Follow-up Attacks . | . . . . . Damage Inflicted 3297 | . 477 170 1186 1464 Guns 2138 | . 477 170 633 858 Cannons 828 | . . . 551 277 Explosions 329 | . . . . 329 Melee . | . . . . . Ramming 2 | . . . 2 . Kinetic 282 | . 124 74 84 . Thermal 2673 | . 291 96 1100 1186 Explosive . | . . . . . Electromagnetic 340 | . 62 . . 278 Impact . | . . . . . Slashing . | . . . . . Piercing . | . . . . . Highest Corruption . | . . . . . Average Corruption . | . . . . . Corruption Purged . | . . . . . Corruption Blocked . | . . . . . Overload Shots . | . . . . . Overflow Damage 20 | . . . . 20 Projectiles . | . . . . . Explosions 20 | . . . . 20 Melee . | . . . . . Knockbacks . | . . . . . Impact . | . . . . . Kinetic . | . . . . . Secondary . | . . . . . Self-Inflicted Damage 32 | . . . . 32 Shots 1 | . . . . 1 Rammed . | . . . . . Targets Rammed 2 | . . . 2 . Kicked 2 | . . . 2 . Crushed . | . . . . . Highest Temperature 189 | . 84 . 66 189 Average Temperature 33 | . 24 . 16 56 Received Heat Transfer 1014 | . 147 . 381 486 Siege Activations . | . . . . . Martial Activations . | . . . . . Shielding Activations . | . . . . . Robots Disrupted . | . . . . . Combat Hostiles . | . . . . . Robots Corrupted . | . . . . . Combat Hostiles . | . . . . . Parts Fried . | . . . . . Impact Corruptions . | . . . . . Robots Melted 1 | . . . . 1 Combat Hostiles 1 | . . . . 1 Parts Melted 6 | . 1 . 3 2 Heat Transferred 5550 | . 754 222 2183 2391 Parts Sabotaged . | . . . . . Parts Stolen . | . . . . . Parts Stripped . | . . . . . Power Chain Reactions 3 | . . . . 3 Alert | -11 -10 -10 -9 -8 ------- Run | Yrd Mat Min Mat Mat Maximum Alert Level . | . . . . . Low Security (%) 100 | 100 100 100 100 100 Level 1 . | . . . . . Level 2 . | . . . . . Level 3 . | . . . . . Level 4 . | . . . . . Level 5 . | . . . . . High Security . | . . . . . Max Security . | . . . . . Peak Influence 130 | . 65 70 130 112 Initial 15 | . . . . 15 Average 32 | . 14 9 65 41 Influence Increases 1148 | . 253 110 493 292 Destroy 0b10 Robot/C 840 | . 180 100 360 200 Destroy 0b10 Robot/NC 55 | . 10 . 5 40 Destroy Leader 200 | . 44 10 112 34 Successful Hack 4 | . 4 . . . Disable Machine 9 | . . . . 9 Destroy Structure 10 | . . . 1 9 Lose Combat Pursuer 30 | . 15 . 15 . Influence Decreases 1044 | . 253 110 450 231 Entered New Map 28 | . . . . 28 Time Decay 908 | . 233 110 420 145 Lost Part 108 | . 20 . 30 58 Squads Dispatched 3 | . . . 1 2 Investigation . | . . . . . Extermination . | . . . . . Reinforcement 3 | . . . 1 2 Assault . | . . . . . Garrison . | . . . . . Intercept . | . . . . . Searches Triggered . | . . . . . Construction Impeded . | . . . . . Haulers Reinforced . | . . . . . Active Scanning Responses . | . . . . . Cargo Convoy Interrupts . | . . . . . Stealth | -11 -10 -10 -9 -8 --------- Run | Yrd Mat Min Mat Mat Distress Signals 7 | . 3 . 3 1 Communications Jammed . | . . . . . Distress Signals . | . . . . . Times Spotted 63 | . 12 4 30 17 Peak Tracking Total 7 | . 3 1 7 6 Tactical Retreats 2 | . 1 . 1 . Traps | -11 -10 -10 -9 -8 ------- Run | Yrd Mat Min Mat Mat Traps Triggered 3 | . 2 . 1 . Indirectly . | . . . . . Trap Hack Attempts . | . . . . . Triggered . | . . . . . Disarmed . | . . . . . Reprogrammed . | . . . . . Reused . | . . . . . Traps Extracted . | . . . . . Installed . | . . . . . Triggered . | . . . . . Machines | -11 -10 -10 -9 -8 ---------- Run | Yrd Mat Min Mat Mat Machines Disabled 1 | . . . . 1 Max in Single Turn 1 | . . . . 1 Machines Repaired . | . . . . . Machines Dismantled . | . . . . . Machines Sabotaged . | . . . . . Overloaded Fab Kills . | . . . . . Hacking | -11 -10 -10 -9 -8 --------- Run | Yrd Mat Min Mat Mat Machines Accessed 4 | . 3 . 1 . Terminals 3 | . 3 . . . Fabricators . | . . . . . Repair Stations . | . . . . . Recycling Units . | . . . . . Scanalyzers 1 | . . . 1 . Garrison Access . | . . . . . Total Hacks 12 | . 10 . 2 . Successful 9 | . 7 . 2 . Failed 3 | . 3 . . . Catastrophic . | . . . . . Database Lockouts . | . . . . . Manual . | . . . . . Terminals 10 | . 10 . . . Fabricators . | . . . . . Repair Stations . | . . . . . Recycling Units . | . . . . . Scanalyzers 2 | . . . 2 . Garrison Access . | . . . . . Terminal Hacks 7 | . 7 . . . Record 1 | . 1 . . . Dispatch Records 2 | . 2 . . . Patrol Status 1 | . 1 . . . Transport Status 1 | . 1 . . . Reinforcement Status 1 | . 1 . . . Zone Layout 1 | . 1 . . . Fabricator Hacks . | . . . . . Repair Station Hacks . | . . . . . Recycling Unit Hacks . | . . . . . Scanalyzer 2 | . . . 2 . Insert Component 1 | . . . 1 . Analyze 1 | . . . 1 . Garrison Access Hacks . | . . . . . Unauthorized Hacks . | . . . . . Terminals . | . . . . . Fabricators . | . . . . . Repair Stations . | . . . . . Recycling Units . | . . . . . Scanalyzers . | . . . . . Garrison Access . | . . . . . Data Cores Recovered . | . . . . . Used . | . . . . . Hacking Detections 2 | . 2 . . . Full Trace Events . | . . . . . Feedback Events . | . . . . . Feedback Blocked . | . . . . . Robot Schematics Acquired . | . . . . . Robots Built . | . . . . . Authchips . | . . . . . Time . | . . . . . Total Robot Build Rating . | . . . . . Part Schematics Acquired 1 | . . . 1 . Parts Built . | . . . . . Authchips . | . . . . . Time . | . . . . . Total Part Build Rating . | . . . . . Parts Repaired . | . . . . . Time . | . . . . . Parts Recycled . | . . . . . Recycled Matter . | . . . . . Retrieved Matter . | . . . . . Retrieved Components . | . . . . . Parts Scanalyzed 1 | . . . 1 . Part Schematics Acquired 1 | . . . 1 . Parts Damaged . | . . . . . Bothacking | -11 -10 -10 -9 -8 ------------ Run | Yrd Mat Min Mat Mat Used RIF Installer . | . . . . . Robots Hacked . | . . . . . Non-combat . | . . . . . Combat . | . . . . . Robot Hacks Applied . | . . . . . Relay Couplers Released . | . . . . . Fabnet Peak Effective % . | . . . . . Robots Rewired . | . . . . . Allies Hacked . | . . . . . Hacks Repelled . | . . . . . Allies | -11 -10 -10 -9 -8 -------- Run | Yrd Mat Min Mat Mat Total Allies . | . . . . . Largest Group . | . . . . . Highest-Rated Group . | . . . . . Highest-Rated Ally . | . . . . . Total Orders . | . . . . . Ally Attacks . | . . . . . Total Damage . | . . . . . Kills . | . . . . . Allies Corrupted . | . . . . . Allies Melted . | . . . . . Intel | -11 -10 -10 -9 -8 ------- Run | Yrd Mat Min Mat Mat Active Infowar (turns) 508 | . . . 289 219 Sensors 508 | . . . 289 219 Robot Analysis Total . | . . . . . Derelict Logs Recovered 2 | . . 2 . . Drone Launches . | . . . . . Drone Recoveries . | . . . . . Exploration | -11 -10 -10 -9 -8 ------------- Run | Yrd Mat Min Mat Mat Turns Passed 2996 | 69 907 710 934 376 Spaces Moved 1648 | 56 555 351 566 120 Core 28 | 14 . . . 14 Treads . | . . . . . Legs 1620 | 42 555 351 566 106 Wheels . | . . . . . Hover . | . . . . . Flight . | . . . . . Fastest Speed 50 | 50 120 190 120 120 Average Speed 153 | 102 141 190 138 196 Slowest Speed 450 | 120 190 190 190 450 Overloaded Moves . | . . . . . Propulsion Burnouts . | . . . . . Robots Hopped . | . . . . . Potential Cave-ins . | . . . . . Cave-ins Triggered . | . . . . . Exploration Rate (%) 44 | 3 77 75 47 18 Regions Visited 4 Branch Regions 1 Pre-discovered Areas . | . . . . . Known Exits Taken 1 | . . . 1 . Unknown Exits Taken 3 | 1 1 1 . . Scrap Searched 1 | . . 1 . . Spaces Dug . | . . . . . Terrain Destroyed 9 | . . . . 9 Melee . | . . . . . Projectile 2 | . . . . 2 AOE 7 | . . . . 7 Terrain Rammed . | . . . . . Walls Destroyed . | . . . . . Machines Disabled . | . . . . . Actions | -11 -10 -10 -9 -8 --------- Run | Yrd Mat Min Mat Mat Total 1925 | 70 639 379 641 196 Wait 77 | . 32 19 17 9 Move 1644 | 55 554 350 565 120 Hop . | . . . . . Pick Up 45 | 8 16 1 6 14 Fast Attach . | . . . . . Attach 22 | 6 4 . 5 7 Detach 2 | . 1 . 1 . Swap 11 | . 5 . 3 3 Drop 17 | 1 6 1 2 7 Fire 105 | . 21 8 40 36 Melee . | . . . . . Ram . | . . . . . Kick 2 | . . . 2 . Crush . | . . . . . Escape Stasis . | . . . . . Rewire . | . . . . . Trap . | . . . . . Miscellaneous . | . . . . . Route ------- -11/Scrapyard -10/Materials (discovered 3 exits: *Mat / [*Min x2]) -10/Mines (discovered 2 exits: *Mat / [*Sub]) -9/Materials (discovered 4 exits: *Mat x2 / [*Min] / [*Sto]) -8/Materials History --------- Turn | Location | Event 8 | -11/Scrapyard | Discovered new exit (range 16) 70 | -11/Scrapyard | Entered Materials 118 | -10/Materials | Discovered new exit (range 16) 313 | -10/Materials | Build established: Mutant 449 | -10/Materials | Discovered new exit (range 10) 655 | -10/Materials | Discovered new exit (range 15) 977 | -10/Materials | Entered Mines 1131 | -10/Mines | Build established: Scavenger-Mutant 1332 | -10/Mines | Learned Materials stockpile data 1492 | -10/Mines | Received a Rocket Launcher from a helpful Derelict 1524 | -10/Mines | Learned 2 Materials zone layouts 1535 | -10/Mines | Discovered new exit (range 4) 1535 | -10/Mines | Discovered new exit (range 15) 1687 | -10/Mines | Entered Materials 1687 | -9/Materials | Evolved 2 slots: Propulsion x1, Utility x1 1688 | -9/Materials | Identified exit to Materials 1851 | -9/Materials | Discovered new exit (range 9) 2315 | -9/Materials | Discovered exit to Materials (range 11) 2467 | -9/Materials | Discovered new exit (range 15) 2621 | -9/Materials | Entered another Materials area 2621 | -8/Materials | Evolved 2 slots: Propulsion x1, Utility x1 2882 | -8/Materials | Lost 5 parts (1p2n1u1w) 2997 | -8/Materials | Self-destructed Last Messages --------------- H-55 Commando heat short circuits Targeting Computer. H-55 Commando critical meltdown. Gauss Rifle melted. K-01 Serf cleans the Neutrino Reactor. K-01 Serf collects debris. Acquired Aluminum Leg. K-01 Serf collects debris. K-01 Serf cleans the Neutrino Reactor. Acquired 50 matter. K-01 Serf collects debris. K-01 Serf destroyed. Acquired Aluminum Leg. K-01 Serf collects debris. Acquired Carbon-fiber Leg. Lgt. Nuclear Core destroyed. Critical hit (Burn: +37). G-47 Trooper destroyed. U-05 Engineer builds a Wall. Critical hit (Burn: +37). Map ----- +----------------------------------------------------+ | ?????????????????????????????????????????????????? | | ?????????????????????????????????????????????????? | | ?????????????????????????????????????????????????? | | ?????????????????????????????????????????????????? | | ?????????????????????????????????????????????????? | | ?????????????????????????????????????????????????? | | ?????????????????????????????????????????????????? | | ?????????????????????????????????????????????????? | | ?????????????????????????????????????????????????? | | ?????????????????????????????????????????????????? | | ?????????????????????????????????????????????????? | | ?????????????????????????????????????????????????? | | ?????????????????????????????????????????????????? | | ?????????????????????????????????????????????????? | | ?????????????????????????????????????????????????? | | ????????? ????????????????????????????????????? | | ?????? ????????????????????????????????????? | | ????? ???????????????????????????????????? | | ?????# ???????????????????????????????????? | | ?????# ???????????????????????????????????? | | ?????# ??????????????????????????????????? | | ?????# ??????????????????????????????????? | | ?????# ???#########??????????????????????? | | ?????# ?###= #??????????????????????? | | ?????# ###Yg #??????????????????????? | | ?????# a u /g / @#??????????????????????? | | ?????# # [#??????????????????????? | | ????## ###########+##?????????????????? | | ? / ?????????????????? | | ? """= #???????????????????????? | | """! [ #???????????????????????? | | ="""%!%!* + """ ??????????????????? | | ^^ = %######## "????????????????? | | ^% %!=% ]#?????? ""???????????????? | | ???## %%% % ]]#?????????? ???????????????? | | ????# ""%%%% ! #??????????????????????????? | | ????# "%% !#??????????????????????????? | | ????# !!#??????????????????????????? | | ????# ##### ! !!#??????????????????????????? | | ????#?????# #####??????????????????????????? | | ??????????# % #????????#??????????????????? | | ??????????# ##### ######## #??????????????????? | | ??????????# ##### # #??????????????????? | | ??????????+ ????# #??????????????????? | | ????????? # ####### ####??????????????????? | | ??????????# # """ # #?????????????????????? | | ??????????# # """ # #####?????????????????? | | ??????????# # """=/ +??????????????? | | ??????????# ?# *#%##### ######??????????????? | | ??????????# ?# # #?????#???????????????????? | +----------------------------------------------------+ Best States ------------- Heat Dissipation 45 Energy Generation 14 Energy Capacity 250 Matter Stores 300 Matter Capacity 300 Sight Range 16 Robot Scan Range 14 Terrain Scan Density 10 Resistance: KI 20 Resistance: TH 20 Resistance: EX 20 Resistance: EM 20 Resistance: I 20 Resistance: S 20 Resistance: P 20 Evasion (%) 55 Armor Integrity Analysis 30 Offensive Hacking 10 Item Schematics ----------------- Imp. Heat Sink | -9/Materials | Scanalyzed Robot Schematics ------------------ None Fabricated ------------ Nothing Repaired ---------- Nothing Alien Tech Used ----------------- None Achievements -------------- None Challenges ------------ None Game ------ Seed SupersonicSalvagingNullifier Manual? 0 Play Time 00:27:20 Cumulative 8.3 hours Start 2025.07.09 @ 05:31:01 End 2025.07.09 @ 06:19:17 Sessions 1 Manual Loads 0 Difficulty Adventurer Special Mode None Game No. 16 Rogue 3 Adventurer 13 Explorer 0 Win Type - Total 0 Types 0/0/0/0/0/0/0/0/0/0 Lore% 3 Gallery% 11 Achievement% 11 Wizard Run 0 Options --------- Layout 1 ASCII 0 Keyboard 1 Movement Numpad Keybinds 0 Fullscreen 1 Font 24/Smallcaps Map View 50x35 Zoom Use 0% Tactical HUD 0 Map Filters NONE Filters NONE Steam 1 RUN: 6af1ac94-1fc0-4b9b-952e-37fffe7ab9b9